bitfinex-derivatives/quotes_SOLF0:USTF0_20250924
["timestamp","ask_amount","ask_price","bid_price","bid_amount"]
[1758721997551,4.2387,212.24,212.13,56.56]
[1758721997959,7.53,212.27,212.15,7.39]
[1758721998160,7.53,212.27,212.13,56.56]
[1758721998161,7.53,212.24,212.1,7.39]
[1758721998349,7.53,212.22,212.08,477.34889905]
[1758721998554,65.9459,212.21,212.08,14.44889905]
[1758721998754,7.53,212.22,212.07,119.6]
[1758721998953,4.2397,212.19,212.07,119.6]
[1758721999549,4.2397,212.19,212.08,7.39]
[1758722000555,4.2401,212.17,212.08,7.39]
[1758722000953,7.53,212.18,212.08,7.39]
[1758722001159,7.53,212.23,212.08,12.77742136]
[1758722001761,4.2394,212.21,212.08,17.01932136]
[1758722002153,4.2398,212.19,212.08,12.77742136]
[1758722002462,4.2398,212.19,212.09,119.58]
[1758722002660,65.9303,212.26,212.11,4.2413]
[1758722003364,65.9303,212.26,212.1,7.39]
[1758722003365,73.4716,212.23,212.1,7.39]
[1758722003661,4.24,212.18,212.1,7.39]
[1758722003861,7.26,212.19,212.1,7.39]
[1758722004657,7.26,212.24,212.1,7.39]
[1758722005761,7.26,212.24,212.12,71.36082136]
[1758722005959,7.26,212.3,212.14,65.967]
[1758722006160,7.26,212.3,212.15,7.44]
[1758722006365,4.2379,212.29,212.18,4.2397]
[1758722006864,7.26,212.3,212.18,4.2397]
[1758722007064,7.26,212.3,212.19,11.6796]
[1758722007268,5.38742136,212.35,212.19,7.44]
[1758722007569,5.38742136,212.35,212.21,7.44]
[1758722007570,7.26,212.35,212.21,7.44]
[1758722008064,7.26,212.35,212.24,7.44]
[1758722008267,7.26,212.35,212.24,127.04]
[1758722008767,7.26,212.41,212.28,7.44]
[1758722009169,7.26,212.41,212.28,12.82742136]
[1758722009466,4.2357,212.39,212.28,7.44]
[1758722009664,4.2357,212.39,212.28,122.34]
[1758722010166,4.2361,212.37,212.28,122.34]
[1758722011770,11.4961,212.37,212.28,122.34]
[1758722011963,7.26,212.37,212.28,122.34]
[1758722012771,7.26,212.37,212.28,126.5779]
[1758722013472,4.2364,212.36,212.28,122.34]
[1758722015977,4.2364,212.36,212.28,7.44]
[1758722016172,65.8872,212.4,212.26,46.98]
[1758722016173,65.903,212.35,212.26,46.98]
[1758722016374,65.9087,212.33,212.26,46.98]
[1758722016575,65.9119,212.32,212.26,46.98]
[1758722017274,7.26,212.32,212.22,7.44]
[1758722017669,7.26,212.37,212.22,7.44]
[1758722017868,7.26,212.37,212.22,11.6791]
[1758722018684,7.26,212.37,212.25,7.44]
[1758722019079,4.2367,212.35,212.25,7.44]
[1758722019283,7.26,212.37,212.25,7.44]
[1758722019879,4.2371,212.33,212.25,7.44]
[1758722021185,7.26,212.4,212.25,7.44]
[1758722021379,7.26,212.4,212.28,7.44]
[1758722021882,7.26,212.4,212.29,4.2377]
[1758722022277,4.2359,212.39,212.29,4.2377]
[1758722022475,7.26,212.4,212.29,4.2377]
[1758722022687,82.16914988,212.53,212.32,7.44]
[1758722022688,7.26,212.45,212.32,7.44]
[1758722023182,7.26,212.45,212.35,4.2365]
[1758722023483,7.26,212.45,212.36,7.44]
[1758722023673,7.26,212.45,212.37,4.2361]
[1758722023876,7.26,212.45,212.36,7.44]
[1758722024272,7.26,212.49,212.36,7.44]
[1758722025978,5.38742136,212.53,212.36,7.44]
[1758722026182,5.38742136,212.53,212.4,11.6755]
[1758722026489,5.38742136,212.53,212.4,7.44]
[1758722026680,4.2337,212.5,212.4,7.44]
[1758722027582,4.2337,212.5,212.4,11.6755]
[1758722027985,4.2337,212.5,212.4,7.44]
[1758722028385,4.2339,212.49,212.4,7.44]
[1758722028586,7.26,212.51,212.4,7.44]
[1758722029490,7.26,212.51,212.41,7.44]
[1758722029681,7.26,212.51,212.37,65.8952]
[1758722029682,12.64742136,212.55,212.44,7.44]
[1758722030284,4.2333,212.52,212.44,7.44]
[1758722030687,4.2336,212.5,212.44,7.44]
[1758722031398,12.64742136,212.55,212.44,7.44]
[1758722031582,7.26,212.55,212.44,7.44]
[1758722031981,4.2323,212.57,212.48,7.44]
[1758722033386,7.26,212.6,212.48,11.6739]
[1758722033985,4.2321,212.58,212.48,7.44]
[1758722034186,65.8354,212.57,212.36,188.88544723]
[1758722034390,4.2341,212.48,212.38,7.55]
[1758722035193,4.2343,212.47,212.38,7.55]
[1758722036587,4.2345,212.46,212.38,7.55]
[1758722036787,65.8534,212.51,212.38,7.55]
[1758722036788,7.62,212.48,212.38,7.55]
[1758722037791,4.2343,212.46,212.38,7.55]
[1758722037992,7.62,212.48,212.38,7.55]
[1758722038191,65.8658,212.47,212.38,7.55]
[1758722038791,4.2348,212.44,212.38,7.55]
[1758722040099,4.2348,212.44,212.36,314.95378981]
[1758722040100,11.5951,212.43,212.36,314.95378981]
[1758722040494,7.36,212.43,212.36,181.33544723]
[1758722040897,11.5953,212.41,212.36,181.33544723]
[1758722041095,7.36,212.41,212.36,181.33544723]
[1758722041497,11.5955,212.41,212.36,181.33544723]
[1758722041898,65.8721,212.45,212.36,181.33544723]
[1758722041899,73.2354,212.44,212.36,181.33544723]
[1758722042105,65.8842,212.41,212.29,350.89]
[1758722042299,7.36,212.39,212.29,350.89]
[1758722042603,65.893,212.38,212.29,350.89]
[1758722042901,7.36,212.35,212.28,119.24]
[1758722043202,7.36,212.31,212.28,119.24]
[1758722043894,65.8722,212.45,212.28,119.24]
[1758722044101,4.2363,212.36,212.28,119.24]
[1758722044400,7.36,212.37,212.28,127.19]
[1758722044596,11.5963,212.37,212.28,127.19]
[1758722045101,7.36,212.37,212.28,127.19]
[1758722045596,8.64579852,212.42,212.29,4.2376]
[1758722045597,7.36,212.41,212.29,4.2376]
[1758722045996,7.36,212.41,212.28,127.19]
[1758722046901,7.36,212.41,212.29,4.2377]
[1758722048302,4.2359,212.39,212.29,4.2377]
[1758722049095,7.36,212.41,212.29,4.2377]
[1758722049299,7.36,212.41,212.28,127.19]
[1758722049998,7.36,212.41,212.29,4.2377]
[1758722050198,4.2359,212.39,212.29,4.2377]
[1758722050507,73.244,212.41,212.28,127.19]
[1758722051407,4.2362,212.37,212.28,127.19]
[1758722054610,4.2365,212.36,212.28,127.19]
[1758722054809,7.36,212.35,212.23,7.95]
[1758722055009,7.36,212.33,212.23,7.95]
[1758722056409,4.2377,212.3,212.23,7.95]
[1758722057408,7.36,212.33,212.23,7.95]
[1758722058111,4.2379,212.28,212.23,7.95]
[1758722058312,7.36,212.33,212.23,7.95]
[1758722058499,11.597,212.33,212.23,7.95]
[1758722058703,7.36,212.33,212.23,7.95]
[1758722059822,7.36,212.33,212.23,12.1888]
[1758722060007,7.36,212.33,212.23,7.95]
[1758722060203,65.8944,212.38,212.23,7.95]
[1758722060404,7.36,212.37,212.23,7.95]
[1758722061210,4.2368,212.34,212.25,4.2384]
[1758722061405,7.36,212.35,212.23,7.95]
[1758722061611,7.36,212.35,212.23,113.81]
[1758722061812,4.2373,212.31,212.23,118.0488]
[1758722062007,7.36,212.35,212.23,113.81]
[1758722062515,7.36,212.35,212.23,118.0489]
[1758722062516,4.2373,212.32,212.23,118.0489]
[1758722063017,4.2367,212.34,212.25,4.2385]
[1758722063417,4.2367,212.34,212.26,7.95]
[1758722063613,7.36,212.39,212.26,7.95]
[1758722063816,74.52379852,212.43,212.26,7.95]
[1758722063817,7.94,212.43,212.27,7.96]
[1758722064017,73.8185,212.43,212.27,7.96]
[1758722064612,65.8815,212.42,212.3,7.96]
[1758722064818,7.94,212.41,212.3,7.96]
[1758722066813,4.2357,212.4,212.32,4.2369]
[1758722067019,4.2357,212.4,212.33,7.96]
[1758722067207,8.67328119,212.45,212.33,7.96]
[1758722067608,4.2351,212.43,212.34,4.2366]
[1758722068515,133.32174221,212.48,212.37,7.96]
[1758722068718,7.94,212.47,212.37,7.96]
[1758722068917,7.94,212.44,212.32,7.96]
[1758722069420,4.2359,212.39,212.32,7.96]
[1758722069715,65.8942,212.38,212.25,3.92189287]
[1758722069920,73.8464,212.34,212.22,25.90088013]
[1758722070122,65.9122,212.32,212.22,21.97898726]
[1758722070306,65.9122,212.32,212.2,78.82]
[1758722070307,4.2384,212.26,212.2,86.78]
[1758722071722,65.925,212.28,212.2,7.96]
[1758722072518,4.2389,212.24,212.2,7.96]
[1758722072723,7.94,212.3,212.2,7.96]
[1758722073022,4.2381,212.28,212.2,7.96]
[1758722074314,12.1775,212.3,212.2,7.96]
[1758722074517,7.94,212.34,212.2,7.96]
[1758722074922,12.1769,212.34,212.19,43.51323158]
[1758722075123,12.1769,212.34,212.2,7.96]
[1758722075820,12.1769,212.34,212.21,7.96]
[1758722076221,7.94,212.34,212.25,4.2383]
[1758722076423,7.94,212.38,212.26,7.96]
[1758722077621,4.2362,212.37,212.27,4.2381]
[1758722077822,7.94,212.38,212.26,7.96]
[1758722078326,4.2367,212.34,212.26,7.96]
[1758722079625,4.2372,212.32,212.26,7.96]
[1758722080022,73.8425,212.35,212.22,7.96]
[1758722080215,4.2375,212.31,212.22,90.28]
[1758722082924,4.2377,212.3,212.22,90.28]
[1758722083125,7.94,212.32,212.22,90.28]
[1758722083331,7.94,212.27,212.19,29.28311]
[1758722083528,4.2389,212.24,212.19,29.28311]
[1758722083822,4.2389,212.24,212.19,37.24311]
[1758722084024,12.1789,212.24,212.19,29.28311]
[1758722084419,4.2392,212.22,212.19,29.28311]
[1758722085029,4.2388,212.24,212.19,29.28311]
[1758722085219,7.94,212.23,212.19,29.28311]
[1758722085627,7.94,212.29,212.19,29.28311]
[1758722085929,7.94,212.27,212.19,29.28311]
[1758722087230,7.94,212.25,212.19,29.28311]
[1758722087526,4.2393,212.22,212.19,29.28311]
[1758722088228,7.94,212.25,212.19,29.28311]
[1758722088932,4.2391,212.22,212.19,29.28311]
[1758722089231,7.94,212.25,212.19,29.28311]
[1758722089837,12.1787,212.25,212.19,29.28311]
[1758722090035,7.94,212.25,212.19,29.28311]
[1758722090738,7.94,212.29,212.19,29.28311]
[1758722090939,7.94,212.27,212.19,29.28311]
[1758722091742,4.2391,212.22,212.19,29.28311]
[1758722092041,12.1791,212.22,212.19,29.28311]
[1758722093045,7.94,212.22,212.19,29.28311]
[1758722093535,7.94,212.24,212.19,29.28311]
[1758722093743,7.91,212.24,212.19,29.28311]
[1758722094035,73.8436,212.25,212.19,29.28311]
[1758722094241,73.8385,212.27,212.19,29.28311]
[1758722094848,4.2392,212.22,212.19,29.28311]
[1758722095844,7.91,212.27,212.19,29.28311]
[1758722096046,7.91,212.26,212.19,29.28311]
[1758722096243,4.2393,212.22,212.19,29.28311]
[1758722096634,7.91,212.25,212.19,29.28311]
[1758722098043,4.2382,212.27,212.2,7.67]
[1758722098548,7.91,212.31,212.2,7.67]
[1758722098743,4.2385,212.26,212.2,7.67]
[1758722098941,7.91,212.31,212.2,7.67]
[1758722099641,7.91,212.31,212.21,7.55]
[1758722100141,4.2373,212.32,212.23,7.55]
[1758722100538,7.83,212.35,212.23,7.55]
[1758722100539,4.2369,212.34,212.23,7.55]
[1758722100741,7.83,212.35,212.24,4.2386]
[1758722101044,65.9064,212.34,212.19,29.28311]
[1758722101249,7.83,212.3,212.19,29.28311]
[1758722101450,7.83,212.28,212.19,29.28311]
[1758722103047,7.83,212.25,212.19,29.28311]
[1758722103341,7.83,212.29,212.2,7.55]
[1758722103547,12.0679,212.29,212.2,7.55]
[1758722103749,13.21578152,212.34,212.2,7.55]
[1758722103952,7.83,212.34,212.2,7.55]
[1758722104142,4.2372,212.32,212.23,7.55]
[1758722104338,7.83,212.34,212.23,7.55]
[1758722104543,73.7358,212.34,212.23,7.55]
[1758722104742,4.2377,212.3,212.23,7.55]
[1758722105049,7.83,212.34,212.23,7.55]
[1758722105252,73.7474,212.31,212.19,29.28311]
[1758722105442,71.29508152,212.33,212.19,29.28311]
[1758722105443,7.83,212.27,212.19,29.28311]
[1758722105946,132.41578152,212.32,212.19,36.83311]
[1758722106844,132.41578152,212.32,212.2,7.55]
[1758722107046,4.2378,212.29,212.2,7.55]
[1758722107442,7.83,212.32,212.2,7.55]
[1758722107647,7.83,212.32,212.19,29.28311]
[1758722107648,125.26744219,212.36,212.21,77.22]
[1758722107847,125.26744219,212.36,212.22,7.55]
[1758722108247,4.2365,212.35,212.22,7.55]
[1758722108648,125.26744219,212.36,212.22,7.55]
[1758722109154,4.237,212.33,212.22,7.55]
[1758722109446,7.83,212.37,212.22,7.55]
[1758722109646,12.0662,212.37,212.22,11.789]
[1758722109950,73.7267,212.37,212.23,7.55]
[1758722110144,65.9013,212.36,212.23,7.55]
[1758722110746,7.83,212.37,212.23,7.55]
[1758722111059,73.7268,212.37,212.23,7.55]
[1758722111349,4.2372,212.32,212.23,7.55]
[1758722113146,7.83,212.34,212.23,7.55]
[1758722113453,7.83,212.39,212.23,7.55]
[1758722113640,4.2365,212.36,212.21,77.22]
[1758722113843,12.0665,212.36,212.22,7.55]
[1758722114246,115.82137301,212.41,212.24,5.38578152]
[1758722114247,4.236,212.38,212.24,5.38578152]
[1758722114441,4.236,212.38,212.25,7.55]
[1758722114747,4.236,212.38,212.28,4.2379]
[1758722114951,4.236,212.38,212.29,7.55]
[1758722115251,73.7238,212.38,212.29,7.55]
[1758722116352,73.7238,212.38,212.2,65.9476]
[1758722116353,7.83,212.31,212.2,7.55]
[1758722116852,7.83,212.35,212.2,7.55]
[1758722117443,7.83,212.35,212.2,73.4979]
[1758722117644,7.83,212.39,212.21,7.55]
[1758722117849,7.83,212.39,212.24,7.55]
[1758722118050,65.8963,212.37,212.24,7.55]
[1758722118250,7.83,212.36,212.24,7.55]
[1758722119544,73.7299,212.36,212.24,7.55]
[1758722119751,7.83,212.36,212.24,7.55]
[1758722120553,4.237,212.33,212.25,2.1870895]
[1758722120752,68.0902895,212.35,212.25,2.1870895]
[1758722121148,4.2374,212.31,212.25,2.1870895]
[1758722121349,7.83,212.36,212.26,7.55]
[1758722121548,10.0170895,212.36,212.26,7.55]
[1758722122054,0.53725786,212.41,212.3,7.55]
[1758722122055,2.1870895,212.4,212.3,7.55]
[1758722122251,68.0746895,212.4,212.3,7.55]
[1758722122450,4.2367,212.35,212.27,2.1870895]
[1758722123150,4.237,212.33,212.26,7.55]
[1758722123347,4.237,212.33,212.26,9.7370895]
[1758722123548,7.83,212.36,212.26,9.7370895]
[1758722123854,4.2369,212.34,212.26,13.9753895]
[1758722124050,7.83,212.36,212.26,9.7370895]
[1758722124250,2.1870895,212.4,212.3,2.1870895]
[1758722124447,2.1870895,212.4,212.29,7.87]
[1758722124648,4.2367,212.35,212.29,7.87]
[1758722126046,4.2369,212.34,212.29,7.87]
[1758722126249,7.28,212.33,212.27,2.1870895]
[1758722126452,71.12821515,212.4,212.27,2.1870895]
[1758722126453,65.889,212.4,212.27,2.1870895]
[1758722126754,2.1870895,212.37,212.27,2.1870895]
[1758722127462,9.4670895,212.39,212.29,2.1870895]
[1758722127755,2.1870895,212.37,212.29,2.1870895]
[1758722127953,7.28,212.36,212.28,7.87]
[1758722128260,2.1870895,212.35,212.28,7.87]
[1758722128457,2.1870895,212.35,212.25,2.1870895]
[1758722128754,9.4670895,212.33,212.23,90.8970895]
[1758722129353,7.28,212.33,212.25,2.1870895]
[1758722129551,7.28,212.33,212.26,7.87]
[1758722129855,11.5171,212.33,212.26,7.87]
[1758722131058,4.2373,212.32,212.26,7.87]
[1758722131260,7.28,212.33,212.26,7.87]
[1758722132755,11.5171,212.33,212.26,7.87]
[1758722132955,71.15642134,212.4,212.26,7.87]
[1758722133153,7.28,212.35,212.26,7.87]
[1758722133461,2.1870895,212.34,212.26,7.87]
[1758722134563,4.2375,212.31,212.26,7.87]
[1758722134762,73.1828,212.35,212.26,10.0570895]
[1758722134959,4.2379,212.28,212.23,80.84]
[1758722135158,65.9241,212.28,212.19,39.3401995]
[1758722135354,2.1870895,212.27,212.19,37.15311]
[1758722136057,65.9241,212.28,212.19,29.28311]
[1758722136058,65.9375,212.24,212.19,29.28311]
[1758722136659,7.28,212.2,212.19,29.28311]
[1758722138361,7.28,212.2,212.19,6.943e-05]
[1758722138666,7.76,212.2,212.19,6.943e-05]
[1758722139263,9.9470895,212.2,212.19,6.943e-05]
[1758722139463,7.28,212.2,212.19,6.943e-05]
[1758722140074,7.76,212.2,212.19,6.943e-05]
[1758722140563,7.28,212.2,212.19,6.943e-05]
[1758722140971,65.966,212.15,212.06,7.87]
[1758722141270,2.1870895,212.15,212.06,10.0570895]
[1758722141668,2.1870895,212.15,212.01,47.68]
[1758722141669,4.2409,212.13,212.08,2.1870895]
[1758722141866,7.28,212.16,212.09,7.87]
[1758722142067,6.4269895,212.19,212.1,2.1870895]
[1758722142278,4.2399,212.19,212.12,10.0570895]
[1758722142477,2.1870895,212.21,212.12,10.0570895]
[1758722143070,2.1870895,212.21,212.13,2.1870895]
[1758722143369,2.1870895,212.21,212.05,65.995]
[1758722143370,7.28,212.24,212.16,2.1870895]
[1758722143967,4.2393,212.22,212.16,2.1870895]
[1758722144176,7.28,212.24,212.14,7.87]
[1758722144478,7.28,212.24,212.14,10.0570895]
[1758722144778,9.4670895,212.24,212.14,10.0570895]
[1758722145382,7.28,212.21,212.14,2.1870895]
[1758722145678,4.2399,212.18,212.12,2.1870895]
[1758722145879,4.2399,212.18,212.1,10.0570895]
[1758722146479,4.2399,212.18,212.12,2.1870895]
[1758722146679,7.28,212.21,212.13,7.87]
[1758722146874,9.4670895,212.25,212.16,2.1870895]
[1758722147276,11.5195,212.21,212.16,2.1870895]
[1758722147672,7.28,212.21,212.16,2.1870895]
[1758722147879,4.2389,212.23,212.16,2.1870895]
[1758722148078,7.28,212.26,212.16,2.1870895]
[1758722148278,2.1870895,212.24,212.16,2.1870895]
[1758722148883,65.9461,212.21,212.1,7.87]
[1758722149182,2.1870895,212.2,212.11,2.1870895]
[1758722149881,4.2398,212.19,212.11,2.1870895]
[1758722150386,2.1870895,212.2,212.11,2.1870895]
[1758722150985,4.2403,212.17,212.11,2.1870895]
[1758722152487,4.2404,212.16,212.12,7.87]
[1758722153487,65.9494,212.2,212.11,10.0570895]
[1758722153688,68.1364895,212.2,212.11,10.0570895]
[1758722154088,2.1870895,212.2,212.12,7.25]
[1758722154490,9.4670895,212.22,212.13,2.1870895]
[1758722155093,4.2399,212.18,212.14,7.25]
[1758722155285,7.28,212.22,212.15,2.1870895]
[1758722155891,7.31,212.22,212.15,2.1870895]
[1758722156591,4.2394,212.21,212.15,2.1870895]
[1758722156995,7.31,212.22,212.15,2.1870895]
[1758722158093,4.2397,212.2,212.16,7.25]
[1758722158295,7.31,212.22,212.16,7.25]
[1758722158888,4.2395,212.2,212.16,7.25]
[1758722159286,9.4970895,212.23,212.16,7.25]
[1758722159592,9.4970895,212.23,212.15,2.1870895]
[1758722161093,9.7070895,212.28,212.19,2.1870895]
[1758722161295,7.52,212.28,212.19,2.1870895]
[1758722161595,4.2388,212.24,212.19,9.4270895]
[1758722161796,65.9273,212.27,212.19,7.24]
[1758722161995,2.1870895,212.26,212.19,7.24]
[1758722162197,68.1234895,212.24,212.15,9.4270895]
[1758722162398,7.52,212.25,212.17,2.1870895]
[1758722162698,7.52,212.25,212.15,7.24]
[1758722163098,73.4539,212.25,212.15,7.24]
[1758722163298,65.9363,212.24,212.15,7.24]
[1758722163695,4.24,212.18,212.15,7.24]
[1758722164096,7.52,212.22,212.11,35.82043204]
[1758722164297,65.9455,212.21,212.11,35.82043204]
[1758722164496,4.2404,212.16,212.11,32.4]
[1758722164701,7.52,212.19,212.09,7.24]
[1758722165999,4.2407,212.15,212.09,7.24]
[1758722166201,7.52,212.19,212.09,7.24]
[1758722166702,4.2398,212.19,212.12,7.24]
[1758722166904,7.52,212.23,212.14,3.42043204]
[1758722167099,125.19150011,212.26,212.15,7.24]
[1758722167299,65.9334,212.25,212.15,7.24]
[1758722167500,7.52,212.24,212.15,7.24]
[1758722168103,7.52,212.24,212.14,10.66043204]
[1758722168704,7.52,212.24,212.15,7.24]
[1758722168705,4.2398,212.19,212.15,7.24]
[1758722169205,7.52,212.24,212.15,7.24]
[1758722169701,4.2396,212.2,212.15,7.24]
[1758722169907,4.2396,212.2,212.12,7.24]
[1758722170110,128.61193215,212.26,212.06,65.9908]
[1758722170111,125.19150011,212.26,212.15,7.24]
[1758722170606,73.4536,212.25,212.15,7.24]
[1758722171799,4.2396,212.2,212.14,10.66043204]
[1758722172400,65.9428,212.22,212.04,343.18]
[1758722172606,73.4628,212.22,212.09,7.24]
[1758722172808,7.52,212.19,212.09,7.24]
[1758722173312,4.2411,212.12,212.09,7.24]
[1758722173505,65.9562,212.18,212.05,10.66043204]
[1758722173506,7.52,212.16,212.05,10.66043204]
[1758722174303,7.52,212.14,212.05,7.24]
[1758722175000,65.9705,212.13,212.05,7.24]
[1758722175206,65.975,212.12,212.01,3.42043204]
[1758722175406,4.2421,212.08,212.01,3.42043204]
[1758722175606,7.52,212.14,212.01,3.42043204]
[1758722175808,65.9709,212.13,212.01,3.42043204]
[1758722176207,4.2415,212.1,212.01,3.42043204]
[1758722176611,4.2411,212.12,212.01,3.42043204]
[1758722176812,65.9704,212.13,212.01,3.42043204]
[1758722177008,7.52,212.14,212.01,3.42043204]
[1758722177009,7.52,212.1,212.01,3.42043204]
[1758722177310,4.2424,212.06,212.0,126.36]
[1758722177703,7.52,212.1,212.0,126.36]
[1758722178202,65.978,212.11,212.0,126.36]
[1758722178203,7.52,212.15,212.08,3.42043204]
[1758722178806,65.9676,212.14,212.01,10.66043204]
[1758722179006,7.52,212.13,212.01,10.66043204]
[1758722180112,4.2411,212.12,212.01,10.66043204]
[1758722180716,7.52,212.13,212.01,10.66043204]
[1758722181017,73.4913,212.13,212.01,10.66043204]
[1758722181207,4.2421,212.08,212.01,7.24]
[1758722181406,73.4913,212.13,212.01,7.24]
[1758722181407,65.9838,212.09,212.01,7.24]
[1758722181814,65.9864,212.08,212.01,7.24]
[1758722182203,65.9896,212.07,212.01,7.24]
[1758722182409,65.9952,212.05,211.95,7.24]
[1758722182808,7.52,212.02,211.86,71.31264127]
[1758722183009,7.52,212.02,211.9,10.66043204]
[1758722183517,11.7632,212.02,211.9,10.66043204]
[1758722183815,7.52,212.02,211.93,3.42043204]
[1758722184010,7.52,212.02,211.94,7.59]
[1758722184411,10.68043204,212.08,211.94,7.59]
[1758722184613,4.2425,212.05,211.95,4.2445]
[1758722185421,10.68043204,212.05,211.94,7.59]
[1758722186317,10.68043204,212.05,211.9,7.59]
[1758722186318,7.26,212.02,211.9,7.59]
[1758722186812,66.0081,212.01,211.9,7.59]
[1758722187018,10.68043204,212.02,211.9,7.59]
[1758722187215,4.2441,211.97,211.9,7.59]
[1758722187813,7.26,211.99,211.9,7.59]
[1758722188507,7.26,211.97,211.85,7.59]
[1758722188909,7.26,211.97,211.87,7.59]
[1758722189308,7.26,212.01,211.87,7.59]
[1758722190219,66.0119,212.0,211.87,7.59]
[1758722190519,76.69493204,211.99,211.87,7.59]
[1758722190916,4.2449,211.93,211.87,7.59]
[1758722192323,4.2449,211.93,211.84,3.42043204]
[1758722192524,4.2445,211.95,211.84,3.42043204]
[1758722192823,7.26,211.96,211.84,3.42043204]
[1758722193528,7.26,211.96,211.85,7.59]
[1758722194624,10.68043204,211.99,211.85,7.59]
[1758722196231,7.26,211.99,211.85,7.59]
[1758722196528,4.2447,211.95,211.87,4.2459]
[1758722196718,4.2447,211.95,211.85,7.59]
[1758722196917,4.2449,211.93,211.85,7.59]
[1758722197324,7.26,211.97,211.85,7.59]
[1758722197526,7.26,211.97,211.85,11.8363]
[1758722197824,7.26,211.97,211.85,7.59]
[1758722198021,7.26,211.97,211.88,7.59]
[1758722198730,4.2443,211.96,211.88,7.59]
[1758722199128,7.26,211.97,211.88,7.59]
[1758722199726,4.2445,211.96,211.88,7.59]
[1758722200027,7.26,211.97,211.88,7.59]
[1758722200626,4.2449,211.94,211.88,7.59]
[1758722200826,7.26,211.97,211.88,7.59]
[1758722201726,3.42043204,212.01,211.88,7.59]
[1758722202023,3.42043204,212.01,211.9,7.59]
[1758722202927,7.26,212.02,211.9,7.59]
[1758722203127,7.26,212.02,211.9,11.8353]
[1758722204024,4.244,211.98,211.9,11.8353]
[1758722204323,7.26,211.99,211.9,7.59]
[1758722204521,4.2449,211.94,211.86,7.59]
[1758722204727,7.26,212.0,211.87,4.246]
[1758722204928,7.26,212.0,211.88,7.59]
[1758722205124,66.0139,211.99,211.88,7.59]
[1758722205325,7.26,212.0,211.88,7.59]
[1758722205522,7.26,212.0,211.88,15.25613204]
[1758722205729,7.26,212.0,211.89,7.59]
[1758722206133,126.36093948,212.04,211.91,3.42043204]
[1758722206329,133.62093948,212.04,211.92,7.59]
[1758722206527,7.26,212.02,211.92,7.59]
[1758722206730,66.0076,212.01,211.92,7.59]
[1758722207130,7.26,212.0,211.92,7.59]
[1758722207329,4.2445,211.96,211.92,7.59]
[1758722209028,4.2447,211.94,211.89,3.42043204]
[1758722209325,4.2447,211.94,211.9,7.59]
[1758722209837,4.2451,211.93,211.9,7.59]
[1758722210029,7.26,211.97,211.87,7.59]
[1758722210830,66.0233,211.96,211.87,7.59]
[1758722212031,7.26,211.97,211.86,7.59]
[1758722212332,66.0263,211.95,211.86,7.59]